[Event "RUS-chT Women Rapid 2019"]
[Site "Sochi"]
[Date "2019.10.19"]
[Round "9.4"]
[White "Vasilevich, Tatjana"]
[Black "Dumcheva, Julia"]
[Result "0-1"]
[ECO "E86"]
[WhiteElo "2360"]
[BlackElo "2152"]
[Annotator "NA"]
[PlyCount "128"]
[EventDate "2019.10.18"]
[EventType "swiss"]
[EventCountry "RUS"]
[SourceTitle "playchess.com"]
[Source "ChessBase"]
[SourceQuality "1"]
[TimeControl "900+10"]

1. d4 {[%emt 0:00:00]} Nf6 {[%emt 0:00:00]} 2. c4 {[%emt 0:00:00]} g6 {[%emt 0:00:00]} 3. Nc3 {[%emt 0:00:00]} Bg7 {[%emt 0:00:00]} 4. e4 {[%emt 0:00:00]} d6 {[%emt 0:00:00]} 5. f3 {[%emt 0:00:00]} O-O {[%emt 0:00:36]} 6. Nge2 {[%emt 0:00:00]} e5 {[%emt 0:00:06]} 7. Be3 {[%emt 0:00:00]} c6 {[%emt 0:00:12]} 8. d5 {[%emt 0:00:05]} c5 {[%emt 0:00:24]} 9. Ng3 {[%emt 0:00:31]} Ne8 {[%emt 0:00:47]} 10. Qd2 {[%emt 0:03:01]} f5 {[%emt 0:00:08]} 11. exf5 {[%emt 0:00:43]} gxf5 {[%emt 0:00:16]} 12. Bg5 {[%emt 0:00:16]} Qd7 {[%emt 0:01:19]} 13. Bd3 {[%emt 0:01:50]} Qf7 {[%emt 0:00:48]} 14. O-O-O {[%emt 0:01:55]} Bd7 {[%emt 0:01:19]} 15. Bh6 {[%emt 0:01:41]} Qg6 {[%emt 0:00:31]} 16. Bxg7 {[%emt 0:00:12]} Nxg7 {[%emt 0:00:04]} 17. f4 {[%emt 0:00:43]} e4 {[%emt 0:00:40]} 18. Be2 {[%emt 0:00:02]} a6 {[%emt 0:00:22]} 19. Kb1 {[%emt 0:00:17]} b5 {[%emt 0:00:35]} 20. cxb5 {[%emt 0:00:56]} axb5 {[%emt 0:00:02]} 21. Bxb5 {[%emt 0:01:01]} Bxb5 {[%emt 0:00:11]} 22. Nxb5 {[%emt 0:00:01]} Na6 {[%emt 0:00:02]} 23. a3 {[%emt 0:02:12]} Rfb8 {[%emt 0:00:15]} 24. Nc3 {[%emt 0:00:13]} Rb3 {[%emt 0:02:20]} 25. Rc1 {[%emt 0:00:05]} Rab8 {[%emt 0:00:11]} 26. Ka2 {[%emt 0:01:11]} Qf6 {[%emt 0:02:01]} 27. Rc2 {[%emt 0:00:34]} c4 {[%emt 0:01:58]} 28. Qe2 {[%emt 0:01:24]} Qd4 {[%emt 0:01:29]} 29. Rd1 {[%emt 0:00:12]} Qb6 {[%emt 0:01:03]} 30. Na4 {[%emt 0:00:21]} Rxa3+ {[%emt 0:01:11]} 31. bxa3 {[%emt 0:00:07]} Qb3+ {[%emt 0:00:04]} 32. Ka1 {[%emt 0:00:00]} Qxa4 {[%emt 0:00:12]} 33. Qxc4 {[%emt 0:00:24]} Nb4 {[%emt 0:00:05]} 34. Rc3 {[%emt 0:00:27]} Qxd1+ {[%emt 0:00:08]} 35. Rc1 {[%emt 0:00:03]} Qa4 {[%emt 0:00:08]} 36. Rc3 {[%emt 0:00:12]} Ra8 {[%emt 0:00:15]} 37. Ne2 {[%emt 0:00:09]} Nd3 {[%emt 0:00:31]} 38. Qxa4 {[%emt 0:00:16]} Rxa4 {[%emt 0:00:03]} 39. Rc8+ {[%emt 0:00:11]} Kf7 {[%emt 0:00:03]} 40. Rc7+ {[%emt 0:00:04]} Kf6 {[%emt 0:00:12]} 41. Rc6 {[%emt 0:00:06]} Rxa3+ {[%emt 0:00:12]} 42. Kb1 {[%emt 0:00:01]} Ne8 {[%emt 0:00:15]} 43. Rc8 {[%emt 0:00:08]} Ke7 {[%emt 0:00:11]} 44. Nd4 {[%emt 0:00:03]} Kd7 {[%emt 0:00:14]} 45. Rb8 {[%emt 0:00:05]} Nxf4 {[%emt 0:00:35]} 46. Rb7+ {[%emt 0:00:19]} Nc7 {[%emt 0:00:08]} 47. Rxc7+ {[%emt 0:00:32]} Kxc7 {[%emt 0:00:06]} 48. Nb5+ {[%emt 0:00:01]} Kd7 {[%emt 0:00:17]} 49. Nxa3 {[%emt 0:00:01]} Nxd5 {[%emt 0:00:01]} 50. Nc4 {[%emt 0:00:09]} Ke6 {[%emt 0:00:08]} 51. Kc2 {[%emt 0:00:05]} f4 {[%emt 0:00:09]} 52. Kd2 {[%emt 0:00:05]} Nf6 {[%emt 0:00:07]} 53. Kc3 {[%emt 0:00:42]} d5 {[%emt 0:00:05]} 54. Nd2 {[%emt 0:00:11]} Ke5 {[%emt 0:00:04]} 55. Nb3 {[%emt 0:00:06]} Ng4 {[%emt 0:00:15]} 56. Nc5 {[%emt 0:00:11]} Nxh2 {[%emt 0:00:07]} 57. Nd7+ {[%emt 0:00:01]} Kd6 {[%emt 0:00:09]} 58. Nf6 {[%emt 0:00:02]} Ke5 {[%emt 0:00:22]} 59. Nd7+ {[%emt 0:00:06]} Kf5 {[%emt 0:00:08]} 60. Kd4 {[%emt 0:00:01]} e3 {[%emt 0:00:04]} 61. Nc5 {[%emt 0:00:34]} e2 {[%emt 0:00:26]} 62. Nd3 {[%emt 0:00:03]} f3 {[%emt 0:00:05]} 63. Ke3 {[%emt 0:00:27]} fxg2 {[%emt 0:00:04]} 64. Kf2 {[%emt 0:00:00]} Nf3 {[%emt 0:00:06]} 0-1

[Event "RUS-chT Women Rapid 2019"]
[Site "Sochi"]
[Date "2019.10.19"]
[Round "9.5"]
[White "Borisova, Ekaterina"]
[Black "Pogonina, Natalija"]
[Result "0-1"]
[ECO "D30"]
[WhiteElo "2118"]
[BlackElo "2479"]
[Annotator "ChessBase"]
[PlyCount "84"]
[EventDate "2019.10.18"]
[EventType "swiss"]
[EventCountry "RUS"]
[SourceTitle "playchess.com"]
[Source "ChessBase"]
[SourceQuality "1"]
[TimeControl "900+10"]

1. d4 {[%emt 0:00:00]} d5 {[%emt 0:00:00]} 2. c4 {[%emt 0:00:00]} e6 {[%emt 0:00:00]} 3. Nf3 {[%emt 0:00:00]} Nf6 {[%emt 0:00:00]} 4. g3 {[%emt 0:00:00]} Bb4+ {[%emt 0:00:00]} 5. Bd2 {[%emt 0:00:03]} Bd6 {[%emt 0:00:00]} 6. Nc3 {[%emt 0:00:08]} c6 {[%emt 0:00:31]} 7. Bg5 {[%emt 0:00:05]} h6 {[%emt 0:00:13]} 8. Bxf6 Qxf6 {[%emt 0:00:02]} 9. Bg2 {[%emt 0:00:15]} O-O {[%emt 0:00:48]} 10. O-O {[%emt 0:00:02]} Qe7 {[%emt 0:00:02]} 11. e4 {[%emt 0:00:41]} dxc4 {[%emt 0:00:40]} 12. a4 {[%emt 0:00:09]} Nd7 {[%emt 0:02:54]} 13. Qe2 {[%emt 0:00:25]} e5 {[%emt 0:00:38]} 14. d5 {[%emt 0:00:10]} Nf6 {[%emt 0:00:03]} 15. dxc6 {[%emt 0:00:40]} bxc6 {[%emt 0:01:38]} 16. Qxc4 {[%emt 0:00:03]} Be6 {[%emt 0:00:11]} 17. Qe2 {[%emt 0:00:01]} Rab8 {[%emt 0:00:18]} 18. Rfd1 {[%emt 0:00:40]} Rb4 {[%emt 0:00:07]} 19. Rd2 {[%emt 0:00:27]} Bc4 {[%emt 0:00:38]} 20. Qd1 {[%emt 0:00:26]} Bb3 {[%emt 0:00:25]} 21. Qe2 {[%emt 0:00:08]} Rfb8 {[%emt 0:00:05]} 22. a5 {[%emt 0:03:00]} Bc5 {[%emt 0:00:41]} 23. Rb1 {[%emt 0:01:56]} Bc4 {[%emt 0:00:24]} 24. Qd1 {[%emt 0:00:05]} Ng4 {[%emt 0:00:46]} 25. h3 {[%emt 0:01:33]} Nxf2 {[%emt 0:00:11]} 26. Rxf2 {[%emt 0:00:01]} Rxb2 {[%emt 0:00:13]} 27. Nd2 {[%emt 0:00:10]} Rxb1 {[%emt 0:01:14]} 28. Ncxb1 {[%emt 0:00:14]} Bd3 {[%emt 0:01:37]} 29. Bf3 {[%emt 0:01:09]} Bxb1 {[%emt 0:00:25]} 30. Nxb1 {[%emt 0:00:02]} Rb2 {[%emt 0:00:05]} 31. Nd2 {[%emt 0:01:26]} Qd6 {[%emt 0:02:04]} 32. Kf1 {[%emt 0:00:19]} Bxf2 {[%emt 0:00:05]} 33. Nc4 {[%emt 0:00:01]} Qxd1+ {[%emt 0:00:10]} 34. Bxd1 {[%emt 0:00:02]} Rb1 {[%emt 0:00:04]} 35. Ke2 {[%emt 0:00:01]} Bxg3 {[%emt 0:00:12]} 36. Bc2 {[%emt 0:00:03]} Rb4 {[%emt 0:00:11]} 37. Kd3 {[%emt 0:00:02]} Kf8 {[%emt 0:00:14]} 38. a6 {[%emt 0:00:02]} Ke7 {[%emt 0:00:14]} 39. Na5 {[%emt 0:00:05]} Rb6 {[%emt 0:00:25]} 40. Ba4 {[%emt 0:00:10]} Rxa6 {[%emt 0:00:09]} 41. Nxc6+ {[%emt 0:00:02]} Kd6 {[%emt 0:00:06]} 42. Bb5 {[%emt 0:00:01]} Rxc6 {[%emt 0:00:03]} 0-1

[Event "RUS-chT Women Rapid 2019"]
[Site "Sochi"]
[Date "2019.10.19"]
[Round "9.6"]
[White "Girya, Olga"]
[Black "Danilova, Rada"]
[Result "1-0"]
[ECO "E18"]
[WhiteElo "2476"]
[BlackElo "1843"]
[Annotator "ChessBase"]
[PlyCount "173"]
[EventDate "2019.10.18"]
[EventType "swiss"]
[EventCountry "RUS"]
[SourceTitle "playchess.com"]
[Source "ChessBase"]
[SourceQuality "1"]
[TimeControl "900+10"]

1. d4 {[%emt 0:00:00]} Nf6 {[%emt 0:00:00]} 2. c4 {[%emt 0:00:00]} e6 {[%emt 0:00:00]} 3. Nf3 {[%emt 0:00:00]} b6 {[%emt 0:00:00]} 4. g3 {[%emt 0:00:00]} Bb7 {[%emt 0:00:00]} 5. Bg2 {[%emt 0:00:00]} Be7 {[%emt 0:00:02]} 6. O-O {[%emt 0:00:07]} O-O {[%emt 0:00:03]} 7. Nc3 {[%emt 0:00:28]} Ne4 {[%emt 0:00:04]} 8. Bd2 {[%emt 0:00:01]} f5 {[%emt 0:00:06]} 9. Ne5 {[%emt 0:00:04]} Bf6 {[%emt 0:00:18]} 10. Nxe4 {[%emt 0:00:54]} Bxe4 {[%emt 0:00:12]} 11. f3 {[%emt 0:01:44]} Bxe5 {[%emt 0:01:14]} 12. dxe5 {[%emt 0:02:09]} Bb7 {[%emt 0:01:11]} 13. Bc3 {[%emt 0:00:01]} Qe7 {[%emt 0:00:47]} 14. Qd2 {[%emt 0:01:31]} a5 {[%emt 0:00:47]} 15. Rfd1 {[%emt 0:01:07]} Bc6 {[%emt 0:01:23]} 16. b4 {[%emt 0:02:19]} Ba4 {[%emt 0:00:04]} 17. Rdb1 {[%emt 0:00:01]} axb4 {[%emt 0:02:02]} 18. Bxb4 {[%emt 0:00:02]} c5 {[%emt 0:00:01]} 19. Bc3 {[%emt 0:00:01]} Ra6 {[%emt 0:00:22]} 20. Rb2 {[%emt 0:00:14]} Nc6 {[%emt 0:00:15]} 21. Rab1 {[%emt 0:00:01]} Na5 {[%emt 0:01:03]} 22. Bxa5 {[%emt 0:00:14]} bxa5 {[%emt 0:00:09]} 23. f4 {[%emt 0:00:46]} Qd8 {[%emt 0:02:46]} 24. Qe3 {[%emt 0:02:15]} Bc6 {[%emt 0:01:58]} 25. Qxc5 {[%emt 0:01:27]} Bxg2 {[%emt 0:00:02]} 26. Kxg2 {[%emt 0:00:01]} Qa8+ {[%emt 0:00:01]} 27. Rb7 {[%emt 0:01:03]} Rb8 {[%emt 0:02:17]} 28. Qc7 {[%emt 0:00:23]} Rxb7 {[%emt 0:00:13]} 29. Qxb7 {[%emt 0:00:46]} Qxb7+ {[%emt 0:00:06]} 30. Rxb7 {[%emt 0:00:01]} Rc6 {[%emt 0:00:01]} 31. Rxd7 {[%emt 0:00:24]} Rxc4 {[%emt 0:00:06]} 32. Re7 {[%emt 0:00:15]} Ra4 {[%emt 0:00:08]} 33. Rxe6 {[%emt 0:00:04]} Rxa2 {[%emt 0:00:03]} 34. Kf3 {[%emt 0:00:06]} a4 {[%emt 0:00:08]} 35. Ra6 {[%emt 0:00:05]} a3 {[%emt 0:00:22]} 36. Ra7 {[%emt 0:01:00]} Ra1 {[%emt 0:00:09]} 37. Ke3 {[%emt 0:00:14]} Kf8 {[%emt 0:00:24]} 38. Kd4 {[%emt 0:00:23]} a2 {[%emt 0:00:33]} 39. Ke3 {[%emt 0:00:31]} g6 {[%emt 0:00:14]} 40. Kf2 {[%emt 0:00:06]} Ke8 {[%emt 0:00:33]} 41. Kg2 {[%emt 0:00:01]} Kd8 {[%emt 0:00:19]} 42. Kh3 {[%emt 0:00:07]} Kc8 {[%emt 0:00:24]} 43. Kh4 {[%emt 0:00:17]} h6 {[%emt 0:00:01]} 44. Kh3 {[%emt 0:00:01]} Kb8 {[%emt 0:00:03]} 45. Ra3 {[%emt 0:00:13]} Kc7 {[%emt 0:00:22]} 46. Kg2 {[%emt 0:00:16]} Kc6 {[%emt 0:00:17]} 47. Kf2 {[%emt 0:00:10]} Kd7 {[%emt 0:00:17]} 48. Ke3 {[%emt 0:00:01]} Ke6 {[%emt 0:00:11]} 49. Ra6+ {[%emt 0:00:05]} Ke7 {[%emt 0:00:02]} 50. Kd2 {[%emt 0:00:05]} Kd7 {[%emt 0:00:09]} 51. Kc2 {[%emt 0:00:16]} Re1 {[%emt 0:00:27]} 52. Rxa2 {[%emt 0:00:04]} Rxe2+ {[%emt 0:00:02]} 53. Kb3 {[%emt 0:00:01]} Re4 {[%emt 0:00:16]} 54. Ra4 {[%emt 0:00:21]} Re2 {[%emt 0:00:06]} 55. Ra2 {[%emt 0:00:14]} Re4 {[%emt 0:00:01]} 56. Ra4 {[%emt 0:00:03]} Re2 {[%emt 0:00:01]} 57. Ra6 {[%emt 0:00:01]} Rxh2 {[%emt 0:00:15]} 58. Rxg6 {[%emt 0:00:01]} h5 {[%emt 0:00:28]} 59. Rh6 {[%emt 0:00:33]} Rh3 {[%emt 0:00:11]} 60. Kc4 {[%emt 0:00:04]} Rxg3 {[%emt 0:00:21]} 61. Rxh5 {[%emt 0:00:01]} Ke6 {[%emt 0:00:07]} 62. Rh6+ {[%emt 0:00:01]} Ke7 {[%emt 0:00:12]} 63. Rf6 {[%emt 0:00:01]} Rg1 {[%emt 0:00:09]} 64. Kd4 {[%emt 0:01:09]} Rd1+ {[%emt 0:00:13]} 65. Ke3 {[%emt 0:00:05]} Re1+ {[%emt 0:00:08]} 66. Kf2 {[%emt 0:00:07]} Ra1 {[%emt 0:00:04]} 67. Rxf5 {[%emt 0:00:06]} Ra3 {[%emt 0:00:06]} 68. Rf6 {[%emt 0:00:02]} Rb3 {[%emt 0:00:14]} 69. Ke2 {[%emt 0:00:07]} Ra3 {[%emt 0:00:04]} 70. Rd6 {[%emt 0:00:03]} Rh3 {[%emt 0:00:29]} 71. Rd3 {[%emt 0:00:10]} Rh4 {[%emt 0:00:18]} 72. Kf3 {[%emt 0:00:10]} Rh3+ {[%emt 0:00:04]} 73. Ke4 {[%emt 0:00:02]} Rh1 {[%emt 0:00:03]} 74. Ra3 {[%emt 0:00:05]} Rh5 {[%emt 0:00:22]} 75. Ra7+ {[%emt 0:00:03]} Ke8 {[%emt 0:00:08]} 76. f5 {[%emt 0:00:17]} Rh4+ {[%emt 0:00:02]} 77. Kd5 {[%emt 0:00:01]} Rb4 {[%emt 0:00:09]} 78. Kc5 {[%emt 0:00:15]} Rb1 {[%emt 0:00:09]} 79. Kc6 {[%emt 0:00:37]} Rc1+ {[%emt 0:00:15]} 80. Kd6 {[%emt 0:00:02]} Rb1 {[%emt 0:00:01]} 81. Ra8+ {[%emt 0:00:09]} Kf7 {[%emt 0:00:01]} 82. e6+ {[%emt 0:00:02]} Kf6 {[%emt 0:00:05]} 83. Rf8+ {[%emt 0:00:09]} Kg7 {[%emt 0:00:02]} 84. e7 {[%emt 0:00:06]} Rd1+ {[%emt 0:00:21]} 85. Kc5 {[%emt 0:00:02]} Rc1+ {[%emt 0:00:09]} 86. Kd4 {[%emt 0:00:02]} Rd1+ {[%emt 0:00:02]} 87. Ke4 1-0

[Event "RUS-chT Women Rapid 2019"]
[Site "Sochi"]
[Date "2019.10.19"]
[Round "9.7"]
[White "Ivanova, Anastasia S."]
[Black "Guseva, Marina"]
[Result "1/2-1/2"]
[ECO "B90"]
[WhiteElo "1615"]
[BlackElo "2366"]
[Annotator "NA"]
[PlyCount "60"]
[EventDate "2019.10.18"]
[EventType "swiss"]
[EventCountry "RUS"]
[SourceTitle "playchess.com"]
[Source "ChessBase"]
[SourceQuality "1"]
[TimeControl "900+10"]

1. e4 {[%emt 0:00:00]} c5 {[%emt 0:00:00]} 2. Nf3 {[%emt 0:00:00]} d6 {[%emt 0:00:00]} 3. d4 {[%emt 0:00:00]} cxd4 {[%emt 0:00:00]} 4. Nxd4 {[%emt 0:00:00]} Nf6 {[%emt 0:00:00]} 5. Nc3 {[%emt 0:00:00]} a6 {[%emt 0:00:00]} 6. h3 {[%emt 0:00:00]} e5 {[%emt 0:00:00]} 7. Nde2 {[%emt 0:00:01]} h5 {[%emt 0:00:01]} 8. g3 {[%emt 0:00:11]} Be6 {[%emt 0:00:02]} 9. Bg2 {[%emt 0:00:04]} b5 {[%emt 0:00:01]} 10. a3 {[%emt 0:00:04]} Nbd7 {[%emt 0:00:04]} 11. O-O {[%emt 0:00:10]} Be7 {[%emt 0:00:05]} 12. Bg5 {[%emt 0:00:51]} Rc8 {[%emt 0:00:36]} 13. f4 {[%emt 0:01:00]} Qb6+ {[%emt 0:00:33]} 14. Kh1 {[%emt 0:01:03]} Ng4 {[%emt 0:01:38]} 15. Bxe7 {[%emt 0:01:38]} Kxe7 {[%emt 0:00:03]} 16. f5 {[%emt 0:01:27]} Bc4 {[%emt 0:03:23]} 17. b3 {[%emt 0:04:43]} Ne3 {[%emt 0:01:37]} 18. bxc4 {[%emt 0:00:15]} Nf6 {[%emt 0:00:02]} 19. Qd2 {[%emt 0:01:04]} Nxf1 {[%emt 0:00:02]} 20. Rxf1 {[%emt 0:00:03]} Rxc4 {[%emt 0:00:01]} 21. Qg5 {[%emt 0:00:48]} Kf8 {[%emt 0:00:10]} 22. Rd1 {[%emt 0:00:53]} Qc7 23. Rd3 {[%emt 0:01:42]} Rh6 {[%emt 0:00:29]} 24. Qd2 {[%emt 0:00:46]} Ke7 {[%emt 0:00:28]} 25. Qg5 {[%emt 0:00:38]} Kf8 26. Qd2 {[%emt 0:00:38]} Ke7 {[%emt 0:00:03]} 27. Qg5 {[%emt 0:00:36]} Kf8 28. Qd2 {[%emt 0:00:38]} Ke7 {[%emt 0:00:06]} 29. Qg5 {[%emt 0:00:18]} Kf8 {[%emt 0:00:04]} 30. Qd2 {[%emt 0:00:03]} Ke7 {[%emt 0:03:22]} 1/2-1/2

[Event "RUS-chT Women Rapid 2019"]
[Site "Sochi"]
[Date "2019.10.19"]
[Round "9.8"]
[White "Kovanova, Baira"]
[Black "Arutyunova, Yuliya"]
[Result "1-0"]
[ECO "A05"]
[WhiteElo "2344"]
[BlackElo "1681"]
[Annotator "NA"]
[PlyCount "99"]
[EventDate "2019.10.18"]
[EventType "swiss"]
[EventCountry "RUS"]
[SourceTitle "playchess.com"]
[Source "ChessBase"]
[SourceQuality "1"]
[TimeControl "900+10"]

1. Nf3 {[%emt 0:00:00]} Nf6 {[%emt 0:00:00]} 2. c4 {[%emt 0:00:00]} e6 {[%emt 0:00:00]} 3. e3 {[%emt 0:00:00]} d5 {[%emt 0:00:00]} 4. b3 {[%emt 0:00:01]} Be7 {[%emt 0:00:02]} 5. Nc3 {[%emt 0:00:01]} O-O {[%emt 0:00:04]} 6. Be2 {[%emt 0:00:02]} b6 {[%emt 0:00:27]} 7. O-O {[%emt 0:00:05]} Bb7 {[%emt 0:00:01]} 8. Bb2 {[%emt 0:00:02]} Nbd7 {[%emt 0:00:05]} 9. Rc1 {[%emt 0:00:30]} c6 {[%emt 0:00:26]} 10. d4 {[%emt 0:00:22]} Rc8 {[%emt 0:00:08]} 11. Re1 {[%emt 0:00:12]} dxc4 {[%emt 0:00:15]} 12. bxc4 {[%emt 0:00:31]} Bb4 {[%emt 0:01:16]} 13. Qb3 {[%emt 0:01:04]} Bxc3 {[%emt 0:00:13]} 14. Qxc3 {[%emt 0:01:10]} Ne4 {[%emt 0:00:10]} 15. Qa3 {[%emt 0:01:04]} Qc7 {[%emt 0:00:31]} 16. Red1 {[%emt 0:00:30]} Qd6 {[%emt 0:01:45]} 17. Qxd6 {[%emt 0:01:16]} Nxd6 {[%emt 0:00:01]} 18. Ba3 {[%emt 0:00:01]} Ne4 {[%emt 0:00:52]} 19. Bxf8 {[%emt 0:00:14]} Kxf8 {[%emt 0:00:01]} 20. Bd3 {[%emt 0:00:19]} Nd6 {[%emt 0:01:00]} 21. c5 {[%emt 0:01:52]} Ne8 {[%emt 0:01:18]} 22. Nd2 {[%emt 0:00:53]} e5 {[%emt 0:01:26]} 23. Bf5 {[%emt 0:00:25]} Rd8 {[%emt 0:00:48]} 24. Nc4 {[%emt 0:00:18]} Ke7 {[%emt 0:02:44]} 25. Bxd7 {[%emt 0:00:19]} Rxd7 {[%emt 0:00:15]} 26. Nxe5 {[%emt 0:00:53]} Rc7 {[%emt 0:00:23]} 27. a4 {[%emt 0:01:12]} f6 {[%emt 0:00:21]} 28. Nc4 {[%emt 0:00:16]} b5 {[%emt 0:00:35]} 29. axb5 {[%emt 0:00:22]} cxb5 {[%emt 0:00:05]} 30. Na5 {[%emt 0:00:02]} Bd5 {[%emt 0:00:22]} 31. f3 {[%emt 0:00:02]} f5 {[%emt 0:00:20]} 32. e4 {[%emt 0:00:18]} fxe4 {[%emt 0:00:14]} 33. fxe4 {[%emt 0:00:01]} Bf7 {[%emt 0:01:08]} 34. d5 {[%emt 0:00:03]} Kd7 {[%emt 0:00:41]} 35. e5 {[%emt 0:00:20]} Bh5 {[%emt 0:00:12]} 36. e6+ {[%emt 0:00:07]} Kc8 {[%emt 0:00:32]} 37. Rf1 {[%emt 0:00:46]} Re7 {[%emt 0:01:07]} 38. Rf8 {[%emt 0:00:42]} b4 {[%emt 0:00:09]} 39. Nc6 {[%emt 0:00:35]} Rc7 {[%emt 0:00:03]} 40. Nxb4 {[%emt 0:00:19]} a5 {[%emt 0:00:00]} 41. Nc6 {[%emt 0:00:49]} a4 {[%emt 0:00:04]} 42. Ra1 {[%emt 0:00:05]} Rb7 {[%emt 0:00:06]} 43. d6 {[%emt 0:00:10]} a3 {[%emt 0:00:06]} 44. d7+ {[%emt 0:00:31]} Rxd7 {[%emt 0:00:01]} 45. exd7+ {[%emt 0:00:01]} Kxd7 {[%emt 0:00:01]} 46. Nd4 {[%emt 0:00:04]} Ke7 {[%emt 0:00:08]} 47. Rf5 {[%emt 0:00:04]} Bg6 {[%emt 0:00:05]} 48. Re5+ {[%emt 0:00:02]} Kf6 {[%emt 0:00:02]} 49. Re6+ {[%emt 0:00:03]} Kg5 {[%emt 0:00:02]} 50. Rxa3 {[%emt 0:00:03]} 1-0

[Event "RUS-chT Women Rapid 2019"]
[Site "Sochi"]
[Date "2019.10.19"]
[Round "9.9"]
[White "Nasybullina, Alfia"]
[Black "Bodnaruk, Anastasia"]
[Result "1/2-1/2"]
[ECO "A48"]
[WhiteElo "2132"]
[BlackElo "2419"]
[Annotator "NA"]
[PlyCount "109"]
[EventDate "2019.10.18"]
[EventType "swiss"]
[EventCountry "RUS"]
[SourceTitle "playchess.com"]
[Source "ChessBase"]
[SourceQuality "1"]
[TimeControl "900+10"]

1. d4 {[%emt 0:00:00]} Nf6 {[%emt 0:00:00]} 2. Nf3 {[%emt 0:00:00]} g6 {[%emt 0:00:00]} 3. Bg5 {[%emt 0:00:00]} Bg7 {[%emt 0:00:00]} 4. Nbd2 {[%emt 0:00:01]} d5 {[%emt 0:00:00]} 5. e3 {[%emt 0:00:02]} O-O {[%emt 0:00:00]} 6. Bd3 {[%emt 0:00:01]} b6 {[%emt 0:00:21]} 7. O-O {[%emt 0:00:05]} Bb7 {[%emt 0:00:01]} 8. c4 {[%emt 0:00:04]} Ne4 {[%emt 0:01:52]} 9. Bf4 {[%emt 0:00:20]} Nxd2 {[%emt 0:00:59]} 10. Qxd2 {[%emt 0:00:18]} dxc4 {[%emt 0:00:17]} 11. Bxc4 {[%emt 0:00:01]} Bxf3 {[%emt 0:00:05]} 12. gxf3 {[%emt 0:00:02]} e5 {[%emt 0:00:01]} 13. Bg3 {[%emt 0:00:06]} exd4 {[%emt 0:00:18]} 14. exd4 {[%emt 0:00:02]} Bxd4 {[%emt 0:00:37]} 15. Bxc7 {[%emt 0:00:33]} Qxc7 {[%emt 0:00:48]} 16. Qxd4 {[%emt 0:00:02]} Nc6 {[%emt 0:00:07]} 17. Qf6 {[%emt 0:00:33]} Ne5 {[%emt 0:05:19]} 18. Bd5 {[%emt 0:01:00]} Rad8 {[%emt 0:00:30]} 19. Rfd1 {[%emt 0:00:40]} Rfe8 {[%emt 0:01:42]} 20. Rac1 {[%emt 0:00:27]} Qe7 {[%emt 0:00:25]} 21. Qxe7 {[%emt 0:00:49]} Rxe7 {[%emt 0:00:01]} 22. f4 {[%emt 0:00:03]} Red7 {[%emt 0:00:16]} 23. fxe5 {[%emt 0:00:26]} Rxd5 {[%emt 0:00:01]} 24. Rxd5 {[%emt 0:00:26]} Rxd5 {[%emt 0:00:01]} 25. Rc8+ {[%emt 0:00:19]} Kg7 {[%emt 0:01:53]} 26. Rc7 {[%emt 0:00:02]} Rxe5 {[%emt 0:00:03]} 27. Rxa7 {[%emt 0:00:02]} b5 {[%emt 0:00:56]} 28. Rb7 {[%emt 0:00:20]} g5 {[%emt 0:00:13]} 29. f3 {[%emt 0:00:25]} h5 {[%emt 0:00:07]} 30. Kf2 {[%emt 0:00:02]} Kg6 {[%emt 0:00:07]} 31. b3 {[%emt 0:00:15]} f6 {[%emt 0:00:13]} 32. a4 {[%emt 0:00:02]} bxa4 {[%emt 0:00:08]} 33. bxa4 {[%emt 0:00:02]} Rc5 {[%emt 0:00:30]} 34. Re7 {[%emt 0:00:23]} Kf5 {[%emt 0:00:31]} 35. Re2 {[%emt 0:00:30]} Ra5 {[%emt 0:00:22]} 36. Re4 {[%emt 0:00:11]} Rc5 {[%emt 0:00:14]} 37. Re2 {[%emt 0:00:02]} g4 {[%emt 0:00:56]} 38. Ra2 {[%emt 0:00:11]} Ra5 {[%emt 0:00:15]} 39. Kg3 {[%emt 0:00:03]} Kg5 {[%emt 0:00:26]} 40. fxg4 {[%emt 0:00:21]} hxg4 {[%emt 0:00:01]} 41. h3 {[%emt 0:00:03]} gxh3 {[%emt 0:00:16]} 42. Kxh3 {[%emt 0:00:02]} Kf4 {[%emt 0:00:23]} 43. Kg2 {[%emt 0:00:23]} f5 {[%emt 0:00:09]} 44. Kf2 {[%emt 0:00:12]} Kg4 {[%emt 0:00:16]} 45. Ke3 {[%emt 0:00:18]} f4+ {[%emt 0:00:08]} 46. Kd4 {[%emt 0:00:09]} f3 {[%emt 0:00:12]} 47. Kc4 {[%emt 0:00:16]} Kg3 {[%emt 0:00:23]} 48. Kb4 {[%emt 0:00:02]} Re5 {[%emt 0:00:15]} 49. a5 {[%emt 0:00:11]} f2 {[%emt 0:00:13]} 50. Rxf2 {[%emt 0:00:51]} Kxf2 {[%emt 0:00:01]} 51. a6 {[%emt 0:00:01]} Re7 {[%emt 0:00:03]} 52. Kb5 {[%emt 0:00:06]} Ke3 {[%emt 0:00:21]} 53. Kb6 {[%emt 0:00:03]} Kd4 {[%emt 0:00:03]} 54. a7 {[%emt 0:00:01]} Re8 {[%emt 0:00:01]} 55. Kb7 {[%emt 0:00:01]} 1/2-1/2